Cogmind - Beta 13 @@@ ROGUE MODE // 2024.04.19 @ 08:51:16 Player: Muchitsuji Result: Destroyed by 1T-5KY(R) with Subdweller Machine Gun Performance ------------- Evolutions (0) 0 Regions Visited (3) 600 Robots Destroyed (11) 55 Value Destroyed (275) 275 Prototype IDs (2) 40 Alien Tech Used (0) 0 Bonus (30) 30 TOTAL SCORE: 1000 Bonus ------- Follower Combat Kills 30 Cogmind --------- Core Integrity 0/250 Matter 276/300 Energy 315/315 System Corruption 0% Temperature Cool (78) Movement Walking (120) Location -10/Subcaves Parts ------- > --- POWER (1) -------- Neutrino Core > --- PROPULSION (2) --- Carbon-fiber Leg Myomer Leg > --- UTILITY (2) ------ Small Storage Unit Makeshift Light Armor Plating > --- WEAPON (2) ------- Subdweller Beam Cannon Bore Cannon > --- INVENTORY (8) ---- Subdweller Power Source Heat Sink Structural Scanner Terrain Scanner Terrain Scan Processor ECM Suite Subdweller Laser Mining Laser Peak State ------------ > --- POWER ------------ Neutrino Core > --- PROPULSION ------- Carbon-fiber Leg Myomer Leg > --- UTILITY ---------- Small Storage Unit Makeshift Light Armor Plating > --- WEAPON ----------- Subdweller Beam Cannon Bore Cannon > --- INVENTORY -------- Subdweller Power Source Heat Sink Structural Scanner Terrain Scanner Terrain Scan Processor ECM Suite Subdweller Laser Mining Laser [Rating: 29] Favorites ----------- Power Light Ion Engine Engine Light Ion Engine Power Core Neutrino Core Propulsion Wheel Leg Carbon-fiber Leg Wheel Wheel Utility Small Storage Unit Device Structural Scanner Storage Small Storage Unit Protection Hardened Light Armor Plating Weapon Light Assault Rifle Energy Gun Particle Gun Energy Cannon Subdweller Beam Cannon Ballistic Gun Light Assault Rifle Ballistic Cannon Bore Cannon Special Weapon Mining Laser Impact Weapon Makeshift Hammer Build | -11 -10 -10 -10 ------- Run | Yrd Mat Min Sub Slots Evolved . | . . . . Power . | . . . . Propulsion . | . . . . Utility . | . . . . Weapon . | . . . . Parts Attached 55 | 9 5 25 16 Power 7 | 1 . 4 2 Engine 6 | 1 . 4 1 Core 1 | . . . 1 Reactor . | . . . . Propulsion 12 | 2 2 6 2 Treads . | . . . . Leg 5 | . 1 2 2 Wheel 7 | 2 1 4 . Hover . | . . . . Flight . | . . . . Utility 14 | 1 2 7 4 Device 7 | . 1 4 2 Storage 1 | 1 . . . Processor . | . . . . Hackware . | . . . . Protection 6 | . 1 3 2 Artifact . | . . . . Weapon 22 | 5 1 8 8 Energy Gun 8 | . 1 3 4 Energy Cannon 2 | . . . 2 Ballistic Gun 8 | 5 . 3 . Ballistic Cannon 1 | . . . 1 Launcher . | . . . . Special Weapon 2 | . . 1 1 Impact Weapon 1 | . . 1 . Slashing Weapon . | . . . . Piercing Weapon . | . . . . Special Melee Weapon . | . . . . Unidentified Prototypes . | . . . . Parts Lost 6 | . . 6 . Power 1 | . . 1 . Propulsion 1 | . . 1 . Utility 1 | . . 1 . Weapon 3 | . . 3 . Highest Loss Streak 4 | . . 4 . To Critical Strikes 1 | . . 1 . Average Slot Usage (%) 99 | . 98 99 100 Engine 11 | . 14 14 5 Core 2 | . . . 8 Leg 5 | . . . 17 Wheel 22 | . 28 27 10 Device 7 | . 3 5 12 Storage 14 | . 14 14 14 Protection 6 | . 9 8 1 Energy Gun 10 | . 6 12 8 Energy Cannon 3 | . . . 10 Ballistic Gun 9 | . 21 12 . Ballistic Cannon 2 | . . . 8 Impact Weapon 1 | . . 2 . Naked Turns . | . . . . Heaviest Build 37 | 13 20 20 37 Greatest Support 40 | 32 32 32 40 Greatest Overweight (x) 1 | . . . 1 Average Overweight (x) . | . . . . Largest Inventory Capacity 8 | 8 8 8 8 Average Capacity 7 | 6 8 8 8 Most Carried 8 | 5 8 8 8 Average Carried 7 | 3 6 7 7 Final Capacity 8 | 8 8 8 8 Final Carried 8 | 4 8 8 8 Class Distribution -------------------- 52% | Mutant 47% | Scavenger-Mutant Dominant Class ---------------- Mutant | -10/Materials Mutant | -10/Mines Scavenger-Mutant | -10/Subcaves Resources | -11 -10 -10 -10 ----------- Run | Yrd Mat Min Sub Matter Collected 908 | 184 198 267 259 Remotely . | . . . . Salvage Created 461 | . 164 143 154 Parts 31 | . 13 3 15 Haulers Intercepted . | . . . . Recyclers Shooed . | . . . . Parts Field Recycled . | . . . . Retrieved Matter . | . . . . Parts Self-Destructed 5 | . . . 5 Prevented . | . . . . Kills | -11 -10 -10 -10 ------- Run | Yrd Mat Min Sub Combat Hostiles Destroyed 18 | . 5 9 4 Melee 3 | . . 3 . Guns 13 | . 5 6 2 Cannons 2 | . . . 2 Classes Destroyed 5 | . 3 1 1 Tunneler 1 | . 1 . . Swarmer 4 | . 3 1 . Grunt 2 | . 2 . . Subdweller 4 | . . . 4 Assembled 8 | . . 8 . Best Kill Streak 3 | . 3 3 3 Combat Bots Only 3 | . 3 3 3 Max Kills in Single Turn 1 | . 1 1 1 Gunslinging . | . . . . Exploded . | . . . . Melee 1 | . . 1 . Uniques/NPCs Destroyed . | . . . . Combat | -11 -10 -10 -10 -------- Run | Yrd Mat Min Sub Hostile Shots Fired 123 | . 25 83 15 Missed 30 | . 4 22 4 Damage Taken 1362 | . 210 905 247 Core 261 | . 65 151 45 Absorbed by Shields . | . . . . Core Remaining (%) 100 | 100 . . . Volleys Fired 73 | . 14 44 15 Largest 2 | . 2 2 2 Hottest 145 | . 65 100 145 Shots Fired 130 | . 28 76 26 Gun 104 | . 28 69 7 Cannon 18 | . . . 18 Launcher . | . . . . Special 8 | . . 7 1 Kinetic 72 | . 14 51 7 Thermal 41 | . . 22 19 Explosive . | . . . . Electromagnetic 17 | . 14 3 . Robot Hit Streak 6 | . 5 4 6 Robot Miss Streak 5 | . 3 5 2 Penetration Max . | . . . . Secondary Targets 1 | . . 1 . Max Gunslinging Chain 1 | . . 1 . Shots Hit Robots 68 | . 16 39 13 Core Hits 29 | . 9 15 5 Critical Kills 1 | . . 1 . Critical Parts Destroyed 1 | . . 1 . Critical Strikes 3 | . . 2 1 Destroy 1 | . . . 1 Smash 2 | . . 2 . Melee Attacks 14 | . . 14 . Impact 14 | . . 14 . Slashing . | . . . . Piercing . | . . . . Sneak Attacks . | . . . . Combat Hostiles . | . . . . Follow-up Attacks . | . . . . Damage Inflicted 1187 | . 277 669 241 Guns 684 | . 277 313 94 Cannons 147 | . . . 147 Explosions . | . . . . Melee 356 | . . 356 . Ramming . | . . . . Kinetic 402 | . 121 248 33 Thermal 273 | . . 65 208 Explosive . | . . . . Electromagnetic 156 | . 156 . . Impact 356 | . . 356 . Slashing . | . . . . Piercing . | . . . . Highest Corruption . | . . . . Average Corruption . | . . . . Corruption Purged . | . . . . Corruption Blocked . | . . . . Overload Shots . | . . . . Overflow Damage 93 | . . 93 . Projectiles . | . . . . Explosions . | . . . . Melee 93 | . . 93 . Knockbacks . | . . . . Impact . | . . . . Kinetic . | . . . . Secondary . | . . . . Self-Inflicted Damage . | . . . . Shots . | . . . . Rammed . | . . . . Targets Rammed . | . . . . Kicked . | . . . . Crushed . | . . . . Highest Temperature 500 | . 216 152 500 Average Temperature 85 | . 81 51 197 Received Heat Transfer 536 | . 78 160 298 Effects 6 | . . . 6 Shutdowns 1 | . . . 1 Energy Bleed 2 | . . . 2 Interference 2 | . . . 2 Matter Decay 1 | . . . 1 Siege Activations . | . . . . Robots Corrupted . | . . . . Combat Hostiles . | . . . . Parts Fried . | . . . . Impact Corruptions 4 | . . 4 . Robots Melted . | . . . . Combat Hostiles . | . . . . Parts Melted 1 | . . . 1 Heat Transferred 532 | . . 162 370 Parts Sabotaged . | . . . . Parts Stolen . | . . . . Parts Stripped . | . . . . Power Chain Reactions . | . . . . Alert | -11 -10 -10 -10 ------- Run | Yrd Mat Min Sub Peak Influence 130 | . 130 80 . Initial 50 | . . 50 . Average 23 | . 41 21 . Maximum Alert Level . | . . . . Low Security (%) 100 | 100 100 100 . Level 1 . | . . . . Level 2 . | . . . . Level 3 . | . . . . Level 4 . | . . . . Level 5 . | . . . . High Security . | . . . . Max Security . | . . . . Squads Dispatched 1 | . 1 . . Investigation . | . . . . Extermination . | . . . . Reinforcement 1 | . 1 . . Assault . | . . . . Garrison . | . . . . Intercept . | . . . . Searches Triggered . | . . . . Construction Impeded . | . . . . Haulers Reinforced . | . . . . Active Scanning Responses . | . . . . Cargo Convoy Interrupts . | . . . . Stealth | -11 -10 -10 -10 --------- Run | Yrd Mat Min Sub Distress Signals 3 | . . 3 . Communications Jammed . | . . . . Distress Signals . | . . . . Times Spotted 38 | . 6 21 11 Peak Tracking Total 12 | . 4 12 6 Tactical Retreats . | . . . . Traps | -11 -10 -10 -10 ------- Run | Yrd Mat Min Sub Traps Triggered . | . . . . Indirectly . | . . . . Trap Hack Attempts . | . . . . Triggered . | . . . . Disarmed . | . . . . Reprogrammed . | . . . . Reused . | . . . . Traps Extracted . | . . . . Installed . | . . . . Triggered . | . . . . Machines | -11 -10 -10 -10 ---------- Run | Yrd Mat Min Sub Machines Disabled . | . . . . Max in Single Turn . | . . . . Machines Repaired . | . . . . Machines Dismantled . | . . . . Machines Sabotaged . | . . . . Overloaded Fab Kills . | . . . . Hacking | -11 -10 -10 -10 --------- Run | Yrd Mat Min Sub Machines Accessed 4 | . 3 1 . Terminals 3 | . 2 1 . Fabricators . | . . . . Repair Stations . | . . . . Recycling Units 1 | . 1 . . Scanalyzers . | . . . . Garrison Access . | . . . . Total Hacks 10 | . 8 2 . Successful 5 | . 4 1 . Failed 5 | . 4 1 . Catastrophic 1 | . 1 . . Database Lockouts . | . . . . Manual . | . . . . Terminals 7 | . 5 2 . Fabricators . | . . . . Repair Stations . | . . . . Recycling Units 3 | . 3 . . Scanalyzers . | . . . . Garrison Access . | . . . . Terminal Hacks 4 | . 3 1 . Prototype ID Bank 1 | . 1 . . Alert Level 1 | . 1 . . Locate Traps 1 | . 1 . . Zone Layout 1 | . . 1 . Fabricator Hacks . | . . . . Repair Station Hacks . | . . . . Recycling Unit Hacks 1 | . 1 . . Report Inventory 1 | . 1 . . Scanalyzer . | . . . . Garrison Access Hacks . | . . . . Unauthorized Hacks . | . . . . Terminals . | . . . . Fabricators . | . . . . Repair Stations . | . . . . Recycling Units . | . . . . Scanalyzers . | . . . . Garrison Access . | . . . . Data Cores Recovered . | . . . . Used . | . . . . Hacking Detections 3 | . 2 1 . Full Trace Events . | . . . . Feedback Events . | . . . . Feedback Blocked . | . . . . Robot Schematics Acquired . | . . . . Robots Built . | . . . . Authchips . | . . . . Time . | . . . . Total Robot Build Rating . | . . . . Part Schematics Acquired . | . . . . Parts Built . | . . . . Authchips . | . . . . Time . | . . . . Total Part Build Rating . | . . . . Parts Repaired . | . . . . Time . | . . . . Parts Recycled . | . . . . Recycled Matter . | . . . . Retrieved Matter . | . . . . Retrieved Components . | . . . . Parts Scanalyzed . | . . . . Part Schematics Acquired . | . . . . Parts Damaged . | . . . . Bothacking | -11 -10 -10 -10 ------------ Run | Yrd Mat Min Sub Used RIF Installer . | . . . . Robots Hacked . | . . . . Non-combat . | . . . . Combat . | . . . . Robot Hacks Applied . | . . . . Relay Couplers Released . | . . . . Fabnet Peak Effective % . | . . . . Robots Rewired . | . . . . Allies Hacked . | . . . . Hacks Repelled . | . . . . Allies | -11 -10 -10 -10 -------- Run | Yrd Mat Min Sub Total Allies 1 | . . 1 . Largest Group 1 | . . 1 1 Highest-Rated Group 31 | . . 31 31 Highest-Rated Ally 31 | . . 31 31 Total Orders . | . . . . Ally Attacks 6 | . . . 6 Total Damage 105 | . . . 105 Kills 1 | . . . 1 Allies Corrupted . | . . . . Allies Melted . | . . . . Intel | -11 -10 -10 -10 ------- Run | Yrd Mat Min Sub Robot Analysis Total . | . . . . Derelict Logs Recovered 2 | . . 2 . Drone Launches . | . . . . Drone Recoveries . | . . . . Exploration | -11 -10 -10 -10 ------------- Run | Yrd Mat Min Sub Turns Passed 1616 | 54 170 898 494 Spaces Moved 1243 | 41 102 722 378 Core 13 | 13 . . . Treads . | . . . . Legs 226 | . . 4 222 Wheels 1004 | 28 102 718 156 Hover . | . . . . Flight . | . . . . Fastest Speed 50 | 50 100 80 80 Average Speed 93 | 84 100 88 104 Slowest Speed 120 | 100 100 120 120 Overloaded Moves . | . . . . Propulsion Burnouts . | . . . . Robots Hopped . | . . . . Cave-ins Triggered . | . . . . Exploration Rate (%) 37 | 3 24 97 24 Regions Visited 3 Branch Regions 2 Pre-discovered Areas 2 | . . 1 1 Known Exits Taken 1 | . . 1 . Unknown Exits Taken 2 | 1 1 . . Scrap Searched 7 | . . 1 6 Spaces Dug 6 | . . 1 5 Terrain Destroyed 9 | . . 1 8 Melee . | . . . . Projectile 9 | . . 1 8 AOE . | . . . . Terrain Rammed . | . . . . Walls Destroyed . | . . . . Machines Disabled . | . . . . Actions | -11 -10 -10 -10 --------- Run | Yrd Mat Min Sub Total 1537 | 59 140 889 449 Wait 90 | . 13 56 21 Move 1240 | 40 101 721 378 Hop . | . . . . Pick Up 37 | 10 6 14 7 Fast Attach 7 | . . 3 4 Attach 15 | 6 1 6 2 Detach . | . . . . Swap 33 | 3 4 16 10 Drop 28 | . 1 15 12 Fire 73 | . 14 44 15 Melee 14 | . . 14 . Ram . | . . . . Kick . | . . . . Crush . | . . . . Escape Stasis . | . . . . Rewire . | . . . . Trap . | . . . . Miscellaneous . | . . . . Route ------- -11/Scrapyard -10/Materials -10/Mines (discovered 3 exits: [*Mat x2] / *Sub) -10/Subcaves History --------- Turn | Location | Event 5 | -11/Scrapyard | Discovered new exit (range 16) 55 | -11/Scrapyard | Entered Materials 177 | -10/Materials | Discovered new exit (range 15) 225 | -10/Materials | Entered Mines 314 | -10/Mines | Build established: Mutant 351 | -10/Mines | A weapon hastily lodged in a ceiling crevice suddenly fell to the ground 365 | -10/Mines | Assembled infested the area 476 | -10/Mines | Lost 4 parts (1p1u2w) 499 | -10/Mines | Learned location of Zion (-7) 606 | -10/Mines | Core integrity fell below 50% 713 | -10/Mines | Core integrity fell below 20% 1018 | -10/Mines | Discovered new exit (range 13) 1031 | -10/Mines | Identified exit to Subcaves 1054 | -10/Mines | Discovered new exit (range 7) 1057 | -10/Mines | Received a Mining Laser from a helpful Derelict 1123 | -10/Mines | Entered Subcaves 1123 | -10/Subcaves | Accompanied by 1 ally 1150 | -10/Subcaves | Met a Zionite searching for "candidates" 1198 | -10/Subcaves | A swath of the cavern ceiling suddenly collapsed 1234 | -10/Subcaves | Ambushed by swarm of Subdwellers 1279 | -10/Subcaves | Disturbed a concealed Subdweller 1299 | -10/Subcaves | Lost 5 allies 1454 | -10/Subcaves | Shifting Twisted Machinery released Flamer 1478 | -10/Subcaves | Shifting Twisted Machinery released Sub. Monowheel 1481 | -10/Subcaves | Shifting Twisted Machinery released Flamer 1498 | -10/Subcaves | Shifting Twisted Machinery released Humpback 1603 | -10/Subcaves | Build established: Scavenger-Mutant 1617 | -10/Subcaves | Destroyed by 1T-5KY(R) with Subdweller Machine Gun Last Messages --------------- 01340_ HV Slug penetrates Wall. 01345_ Subatomizers dissect the Sub. Power Source. 01347_ Acquired 5 matter. 01349_ Acquired 46 matter. 01356_ Subatomizers dissect the Sub. Power Source. Flamer falls loose from the Twisted Machinery. 01457_ 6W-XTZ(R): "ECOKILL!" 01460_ HV Slug penetrates Twisted Machinery. 01463_ Sub. Optics melted. 01463_ 6W-XTZ(R) destroyed. 01477_ Acquired 24 matter. Sub. Monowheel falls loose from the Twisted Machinery. Flamer falls loose from the Twisted Machinery. Humpback falls loose from the Twisted Machinery. 01611_ HV Slug penetrates Wall. 01611_ 1T-5KY(R) suffers critical hit (Destroy). 01614_ HV Slug penetrates Wall. Map ----- +----------------------------------------------------+ | ?????????????????????????????????????????????????? | | ?????????????????????????????????????????????????? | | ?????????????????????????????????????????????????? | | ?????????????????????????????????????????????????? | | ?????????????????????????????????????????????????? | | ?????????????????????????????????????????????????? | | ?????????????????????????????????????????????????? | | ?????????????????????????????????????????????????? | | ?????????????????????????????????????????????????? | | ???????????#####?????????????????????????????????? | | ???????????##########????????????????????????????? | | ???????????## #########?????????????????????????? | | ???????????## ## ######????????????????????????? | | ??????????### ## ###????????????????????????? | | ?????????#### ###??####?????????????????? | | ????????### ### ##?? ####????????????????? | | ???????## ####?###?? ######?????????????? | | ???????### ##???????? #####?????????????? | | ???????### ##???????? % ##????? ??????? | | ????????## ########### ##### ???????? | | ????????## ### ############ ## #### ????????? | | ????########### #### ### ##### ????????? | | ????########## ## ### % ?????????? | | ????##" ###"" !"" ## #?????????? | | ?????""" """"" ## "" % ### ###????????? | | ????""""" """ ####### @ ### ###????????? | | #???"""""" " ############ ### ##???????? | | ## ?##""" #####??###### ### ###?????? | | ## ####" #####?????## ##### ####???? | | ####### "" ########## R# ### ###??? | | #### ="" | ########## R % ### # | | "" "" ""### ## #### ### ### | | % ! " "" ##"###" ###### ### | | ! !%% ######"""" ####### % ### | | !"" ########""### ###?? ## | | #####??###"""#### ####??? ## | | "" #####???##""" # ####??? ### ## # | | "" ##??????##""" #### ### ### #### | | "" ##??????### ## %## ### ####? | | " ####??????#########"""" ? # ###?? | | /" #####??????????#### # # ##### % ??? | | ## ####???????????????####### ####### $ ? | | "" ""##????????????????####### % ???##### # ## ? | | ##"""???????????????????????## ###?????#########? | | ## "????????????????????????#######????????#####?? | | ??????????????????????????????????????????????? | | ?????????????????????????????????????????????????? | | ?????????????????????????????????????????????????? | | ?????????????????????????????????????????????????? | | ?????????????????????????????????????????????????? | +----------------------------------------------------+ Best States ------------- Heat Dissipation 35 Energy Generation 19 Energy Capacity 315 Matter Stores 300 Matter Capacity 300 Sight Range 16 Terrain Scan Range 14 Terrain Scan Density 10 Armor Coverage 150 Evasion (%) 55 Item Schematics ----------------- None Robot Schematics ------------------ None Fabricated ------------ Nothing Alien Tech Used ----------------- None Achievements -------------- I Survived The Infestation Challenges ------------ None Game ------ Seed StealthHeavyWarhead Manual? 0 Play Time 00:37:38 Cumulative 14.9 hours Start 2024.04.19 @ 07:56:29 End 2024.04.19 @ 08:51:16 Sessions 1 Manual Loads 0 Difficulty Rogue Special Mode None Game No. 12 Rogue 11 Adventurer 1 Explorer 0 Win Type - Total 0 Types 0/0/0/0/0/0/0/0/0 Lore% 12 Gallery% 24 Achievement% 19 Wizard Run 0 Options --------- Layout 1 ASCII 0 Keyboard 0 Movement Mouse Keybinds 0 Fullscreen 2 Font 24/Proggy Map View 50x35 Zoom Use 0% Tactical HUD 1 Map Filters NONE Filters NONE Steam 1 RUN: 8ab4be97-e8e3-4a3a-aa8d-1bbf8050cf20